bitfinex-derivatives/quotes_BTCF0:USTF0_20250806
["timestamp","ask_amount","ask_price","bid_price","bid_amount"]
[1754460570851,1.36121277,114060.0,114050.0,0.12428]
[1754460572554,1.36121277,114060.0,114050.0,0.005]
[1754460574856,0.2546614,114040.0,114030.0,0.10381]
[1754460575155,1.36764327,114040.0,114030.0,0.11928]
[1754460575545,0.2941468,114030.0,114020.0,0.3091814]
[1754460575847,0.2941468,114030.0,114020.0,0.3385459]
[1754460577261,0.2941468,114030.0,114020.0,0.3445459]
[1754460577859,0.2941468,114030.0,114020.0,0.300693]
[1754460578259,0.2941468,114030.0,114020.0,0.37120693]
[1754460578660,0.2941468,114030.0,114020.0,0.52824734]
[1754460579958,0.2941468,114030.0,114020.0,0.53324734]
[1754460580845,0.2941468,114030.0,114020.0,0.98999921]
[1754460580846,0.1904868,114030.0,114020.0,0.98999921]
[1754460581854,0.1904868,114030.0,114020.0,0.8329588]
[1754460583264,0.1904868,114030.0,114020.0,0.99013292]
[1754460583464,0.2577768,114030.0,114020.0,0.53338105]
[1754460583669,0.2941468,114030.0,114020.0,0.53338105]
[1754460585469,0.75089867,114030.0,114020.0,0.35796805]
[1754460586363,2.25089867,114030.0,114020.0,0.28651805]
[1754460586567,2.25089867,114030.0,114020.0,0.23868805]
[1754460587269,2.25089867,114030.0,114020.0,0.23268805]
[1754460587469,2.25956697,114030.0,114020.0,0.07751393]
[1754460587874,2.25956697,114030.0,114020.0,0.07551393]
[1754460588271,1.8028151,114030.0,114020.0,0.07551393]
[1754460588469,2.25956697,114030.0,114020.0,0.07551393]
[1754460588664,2.25956697,114030.0,114020.0,0.13326393]
[1754460589070,2.25956697,114030.0,114020.0,0.13026393]
[1754460589764,0.2941778,114010.0,114000.0,0.15808799]
[1754460589970,1.36860967,114010.0,114000.0,0.27736799]
[1754460590574,1.36860967,114010.0,114000.0,0.12019387]
[1754460591072,1.36860967,114010.0,114000.0,0.07025421]
[1754460591273,1.36860967,114010.0,114000.0,0.00091387]
[1754460591874,0.9118578,114010.0,114000.0,0.29629687]
[1754460592073,0.9118578,114010.0,114000.0,0.12084387]
[1754460592476,1.36860967,114010.0,114000.0,0.12084387]
[1754460592782,2.86860967,114010.0,114000.0,0.12084387]
[1754460593076,2.86860967,114010.0,114000.0,0.29629687]
[1754460593281,2.87060967,114010.0,114000.0,0.29629687]
[1754460593577,2.87160967,114010.0,114000.0,0.29629687]
[1754460594178,2.87160967,114010.0,114000.0,0.12084387]
[1754460595077,2.87160967,114010.0,114000.0,0.01006387]
[1754460595376,2.87160967,114010.0,114000.0,0.00091387]
[1754460599878,2.87048967,114010.0,114000.0,0.05759387]
[1754460600081,2.87048967,114010.0,114000.0,0.10613387]
[1754460601282,2.87048967,114010.0,114000.0,0.12084387]
[1754460601779,2.4137378,114010.0,114000.0,0.12084387]
[1754460601980,2.87048967,114010.0,114000.0,0.12084387]
[1754460604885,2.87048967,114010.0,114000.0,0.29629697]
[1754460605388,2.25392967,114010.0,114000.0,0.29629697]
[1754460605588,2.86960967,114010.0,114000.0,0.12084387]
[1754460606189,2.4128578,114010.0,114000.0,0.12084387]
[1754460606491,2.86960967,114010.0,114000.0,0.29629687]
[1754460606989,2.86960967,114010.0,114000.0,0.12084387]
[1754460607199,2.4128578,114010.0,114000.0,0.12084387]
[1754460607383,2.86960967,114010.0,114000.0,0.29629687]
[1754460608692,2.25392967,114010.0,114000.0,0.17636687]
[1754460608894,0.9129378,114010.0,114000.0,0.75304874]
[1754460609392,2.4129378,114010.0,114000.0,0.75304874]
[1754460610596,2.4129378,114010.0,114000.0,0.29629687]
[1754460610789,0.7944378,114010.0,114000.0,0.75304874]
[1754460610991,0.003,114010.0,114000.0,1.05304874]
[1754460611192,0.003,114010.0,114000.0,1.66896874]
[1754460611696,0.003,114010.0,114000.0,2.12572061]
[1754460611894,0.9537818,114030.0,114020.0,0.2953522]
[1754460612091,0.3378618,114030.0,114020.0,0.75210407]
[1754460612295,0.25677,114030.0,114020.0,0.75210407]
[1754460612490,0.2710468,114030.0,114020.0,0.75210407]
[1754460612690,0.1915685,114040.0,114030.0,0.2953369]
[1754460612890,0.1915615,114040.0,114030.0,0.75208877]
[1754460613293,0.2337675,114050.0,114040.0,0.2953215]
[1754460613493,0.2337675,114050.0,114040.0,0.75207337]
[1754460614292,0.2567475,114050.0,114040.0,0.75207337]
[1754460614491,0.2710275,114050.0,114040.0,0.75207337]
[1754460614703,0.2979875,114050.0,114040.0,0.2953215]
[1754460615699,0.3029875,114050.0,114040.0,0.2953215]
[1754460616493,0.1843875,114050.0,114040.0,0.75207337]
[1754460617402,0.009,114050.0,114040.0,0.75207337]
[1754460617591,0.1843761,114050.0,114040.0,1.36755337]
[1754460618098,0.2334461,114050.0,114040.0,1.36755337]
[1754460618600,0.2005461,114050.0,114040.0,1.36755337]
[1754460618792,0.1955461,114050.0,114040.0,1.36755337]
[1754460619193,0.1793761,114050.0,114040.0,1.36755337]
[1754460619893,0.1813761,114050.0,114040.0,1.36755337]
[1754460621101,0.006,114050.0,114040.0,1.36755337]
[1754460621402,0.006,114050.0,114040.0,1.84292137]
[1754460621899,0.002,114050.0,114040.0,1.84292137]
[1754460622098,0.002,114050.0,114040.0,2.29967324]
[1754460622805,0.002,114050.0,114040.0,1.84292137]
[1754460623905,0.1773761,114050.0,114040.0,1.84292137]
[1754460624801,0.1783761,114050.0,114040.0,1.84292137]
[1754460625506,0.1763761,114050.0,114040.0,1.84292137]
[1754460626007,0.2835061,114050.0,114040.0,0.9099615]
[1754460626207,0.2977261,114050.0,114040.0,0.9099615]
[1754460626402,0.2967261,114050.0,114040.0,0.9099615]
[1754460626610,0.2825061,114050.0,114040.0,0.2953215]
[1754460626905,0.2967261,114050.0,114040.0,0.2953215]
[1754460627110,0.2967261,114050.0,114040.0,0.9100415]
[1754460627407,0.2977261,114050.0,114040.0,0.9100415]
[1754460630408,0.2977261,114050.0,114040.0,0.11993]
[1754460630607,0.75447797,114050.0,114040.0,0.66206]
[1754460631008,0.75447797,114050.0,114040.0,0.71969]
[1754460631209,0.75447797,114050.0,114040.0,0.73423]
[1754460632602,0.2977261,114050.0,114040.0,0.73423]
[1754460633004,0.2977261,114050.0,114040.0,0.9096215]
[1754460633210,0.2977261,114050.0,114040.0,1.36637337]
[1754460633402,0.1946961,114050.0,114040.0,1.36637337]
[1754460633804,0.1783761,114050.0,114040.0,1.36637337]
[1754460634407,0.2521961,114050.0,114040.0,1.36637337]
[1754460634904,0.2664161,114050.0,114040.0,1.36637337]
[1754460635102,0.2977261,114050.0,114040.0,1.36637337]
[1754460636910,0.2437761,114050.0,114040.0,1.36637337]
[1754460637108,0.1783761,114050.0,114040.0,1.36637337]
[1754460637714,0.2295561,114050.0,114040.0,1.36637337]
[1754460638114,0.2521961,114050.0,114040.0,1.36637337]
[1754460640208,0.2295561,114050.0,114040.0,1.36637337]
[1754460640410,0.1946961,114050.0,114040.0,1.36637337]
[1754460640914,0.178376,114050.0,114040.0,1.36637337]
[1754460642619,0.003,114050.0,114040.0,1.36637337]
[1754460643514,0.1783761,114050.0,114040.0,1.36637337]
[1754460643713,0.003,114050.0,114040.0,1.36637337]
[1754460645827,0.003,114050.0,114040.0,1.82312524]
[1754460646028,0.003,114050.0,114040.0,1.99849324]
[1754460646723,0.003,114050.0,114040.0,1.82312524]
[1754460646928,0.003,114050.0,114040.0,1.52354749]
[1754460647130,0.175358,114070.0,114060.0,0.2947807]
[1754460647332,0.175358,114070.0,114060.0,1.36541257]
[1754460648426,0.178358,114070.0,114060.0,1.36541257]
[1754460648628,0.183358,114070.0,114060.0,1.36541257]
[1754460649431,0.180358,114070.0,114060.0,1.43653302]
[1754460649633,0.182358,114070.0,114060.0,1.43653302]
[1754460650723,0.182358,114070.0,114060.0,1.44541757]
[1754460650924,0.007,114070.0,114060.0,1.44541757]
[1754460651126,0.003,114070.0,114060.0,1.44541757]
[1754460651326,0.1783453,114070.0,114060.0,1.43653302]
[1754460657236,0.1783453,114070.0,114060.0,0.97978115]
[1754460657431,0.1783453,114070.0,114060.0,1.43653302]
[1754460657632,0.2261953,114070.0,114060.0,1.43653302]
[1754460657833,0.2963753,114070.0,114060.0,0.97978115]
[1754460658033,0.75312717,114070.0,114060.0,0.11845045]
[1754460658231,0.2963753,114070.0,114060.0,0.80352045]
[1754460658425,0.75312717,114070.0,114060.0,0.80352045]
[1754460659836,0.2963753,114070.0,114060.0,0.80352045]
[1754460660038,0.75312717,114070.0,114060.0,0.80352045]
[1754460661641,0.75312717,114070.0,114060.0,0.97888125]
[1754460662140,0.2963753,114070.0,114060.0,0.36592125]
[1754460662441,0.2963753,114070.0,114060.0,0.19056045]
[1754460663341,0.75312717,114070.0,114060.0,0.19056045]
[1754460666243,0.75312717,114070.0,114060.0,0.08086045]
[1754460666438,0.75312717,114070.0,114060.0,0.07112045]
[1754460666644,0.2963753,114070.0,114060.0,0.08185]
[1754460666945,0.75312717,114070.0,114060.0,0.15060664]
[1754460667745,0.75312717,114070.0,114060.0,0.17283664]
[1754460668547,0.2963753,114070.0,114060.0,0.17283664]
[1754460668742,0.75312717,114070.0,114060.0,0.36355724]
[1754460668942,0.75312717,114070.0,114060.0,0.18819664]
[1754460670143,0.75312717,114070.0,114060.0,0.17463664]
[1754460670344,0.75312717,114070.0,114060.0,0.06875664]
[1754460670648,0.2225007,114060.0,114050.0,0.27661412]
[1754460670946,0.75014257,114060.0,114050.0,0.27661412]
[1754460671146,0.75014257,114060.0,114050.0,0.11944]
[1754460671446,0.2933907,114060.0,114050.0,0.2948161]
[1754460671647,0.2933907,114060.0,114050.0,0.36375428]
[1754460671848,0.2943907,114060.0,114050.0,0.18837818]
[1754460672246,0.2953907,114060.0,114050.0,0.18837818]
[1754460672652,0.2953907,114060.0,114050.0,0.36375418]
[1754460676253,0.2953907,114060.0,114050.0,0.36375458]
[1754460680358,0.75214257,114060.0,114050.0,0.18837818]
[1754460680757,0.75214257,114060.0,114050.0,0.17481818]
[1754460681058,0.2953907,114060.0,114050.0,0.14107818]
[1754460681258,0.75214257,114060.0,114050.0,0.14107818]
[1754460681755,0.75214257,114060.0,114050.0,0.17481818]
[1754460682359,0.2954314,114040.0,114030.0,0.49247512]
[1754460682553,0.2954314,114040.0,114030.0,1.10543512]
[1754460683459,0.2954314,114040.0,114030.0,0.49247512]
[1754460683657,0.2954314,114040.0,114030.0,1.10539512]
[1754460683859,0.2954314,114040.0,114030.0,0.950221]
[1754460684360,0.2954314,114040.0,114030.0,0.951221]
[1754460684756,0.30429753,114040.0,114030.0,0.951221]
[1754460684957,0.2954314,114040.0,114030.0,0.951221]
[1754460685157,0.2954314,114040.0,114030.0,1.02284425]
[1754460685561,0.2954314,114040.0,114030.0,1.02288425]
[1754460687063,0.30439425,114040.0,114030.0,1.02288425]
[1754460687668,0.2954314,114040.0,114030.0,1.02288425]
[1754460687857,0.2954314,114040.0,114030.0,1.47963612]
[1754460688058,0.2578214,114040.0,114030.0,1.47963612]
[1754460688463,0.1753914,114040.0,114030.0,1.47963612]
[1754460689864,0.2098214,114040.0,114030.0,1.47963612]
[1754460690368,0.2264214,114040.0,114030.0,1.47963612]
[1754460691259,0.2640314,114040.0,114030.0,1.47963612]
[1754460691458,0.2954314,114040.0,114030.0,0.97903265]
[1754460691865,0.2233914,114040.0,114030.0,0.97903265]
[1754460692466,0.2578214,114040.0,114030.0,0.97903265]
[1754460692863,0.2264214,114040.0,114030.0,0.97903265]
[1754460693562,0.1753914,114040.0,114030.0,0.97903265]
[1754460694567,0.1753914,114040.0,114030.0,1.43578452]
[1754460695265,0.1753914,114040.0,114030.0,1.59295864]
[1754460696361,0.1919914,114040.0,114030.0,1.59295864]
[1754460696567,0.2504014,114040.0,114030.0,1.59295864]
[1754460696768,0.2640314,114040.0,114030.0,1.59295864]
[1754460696964,0.2954314,114040.0,114030.0,1.59295864]
[1754460699968,0.1919914,114040.0,114030.0,1.13620677]
[1754460700160,0.2954314,114040.0,114030.0,1.13620677]
[1754460703077,0.2818014,114040.0,114030.0,1.13620677]
[1754460703473,0.1919914,114040.0,114030.0,1.13620677]
[1754460703777,0.1919914,114040.0,114030.0,1.59295864]
[1754460703982,0.1919914,114040.0,114030.0,1.43578452]
[1754460704378,0.1919914,114040.0,114030.0,1.59348575]
[1754460707576,0.1753914,114040.0,114030.0,1.59348575]
[1754460712687,0.1753914,114040.0,114030.0,1.65089366]
[1754460713987,0.1753914,114040.0,114030.0,1.49319243]
[1754460714789,0.1749914,114040.0,114030.0,1.49319243]
[1754460715790,0.1749914,114040.0,114030.0,1.69706265]
[1754460717590,0.1749914,114040.0,114030.0,1.18290287]
[1754460717890,0.1749914,114040.0,114030.0,1.69706265]
[1754460719390,0.2238714,114040.0,114030.0,1.69706265]
[1754460719590,0.73803118,114040.0,114030.0,1.69706265]
[1754460720195,0.70459118,114040.0,114030.0,1.69706265]
[1754460721788,0.1904314,114040.0,114030.0,1.69706265]
[1754460723591,0.1749914,114040.0,114030.0,1.69706265]
[1754460724394,0.2630812,114050.0,114040.0,0.2956915]
[1754460724583,0.2630812,114050.0,114040.0,0.96773889]
[1754460724584,0.2192339,114050.0,114040.0,0.96773889]
[1754460724989,0.1753874,114050.0,114040.0,0.96773889]
[1754460725195,0.2192135,114060.0,114050.0,0.2956761]
[1754460725393,0.2192135,114060.0,114050.0,1.58020349]
[1754460726191,0.2192135,114060.0,114050.0,1.06604371]
[1754460726391,0.2192135,114060.0,114050.0,1.58020349]
[1754460726894,0.2192135,114060.0,114050.0,1.52292644]
[1754460727283,0.2202135,114060.0,114050.0,1.52292644]
[1754460727489,0.2212135,114060.0,114050.0,1.52292644]
[1754460727690,0.2212135,114060.0,114050.0,1.36503883]
[1754460729107,0.2212135,114060.0,114050.0,0.9081561]
[1754460729306,0.2212135,114060.0,114050.0,1.36503883]
[1754460730500,0.2212135,114060.0,114050.0,1.52257956]
[1754460732005,0.1773728,114060.0,114050.0,1.52257956]
[1754460732201,0.002,114060.0,114050.0,1.52257956]
[1754460733104,0.002,114060.0,114050.0,1.36503883]
[1754460735101,0.002,114060.0,114050.0,1.37398238]
[1754460735704,0.2630109,114080.0,114070.0,0.2956454]
[1754460735904,0.2630109,114080.0,114070.0,1.36476813]
[1754460737004,0.2191753,114080.0,114070.0,1.36476813]
[1754460737207,0.2251753,114080.0,114070.0,1.36476813]
[1754460737905,0.1813425,114080.0,114070.0,1.36476813]
[1754460739606,0.1813425,114080.0,114070.0,0.9078854]
[1754460739808,0.1813425,114080.0,114070.0,1.36476813]
[1754460739998,0.1967825,114080.0,114070.0,1.36476813]
[1754460740202,0.2302225,114080.0,114070.0,1.36476813]
[1754460740807,0.2302225,114080.0,114070.0,1.36476803]
[1754460741210,0.2984625,114080.0,114070.0,0.73238]
[1754460741410,0.2984625,114080.0,114070.0,0.9077253]
[1754460741710,0.2974625,114080.0,114070.0,0.9077253]
[1754460741912,0.2934625,114080.0,114070.0,0.9077253]
[1754460750517,0.2791825,114080.0,114070.0,1.36460803]
[1754460750817,0.2252225,114080.0,114070.0,1.36460803]
[1754460751320,0.2932725,114080.0,114070.0,1.36460803]
[1754460751515,0.2932725,114080.0,114070.0,0.9077253]
[1754460753218,0.1763425,114080.0,114070.0,1.36460803]
[1754460754910,0.1763304,114080.0,114070.0,1.36460803]
[1754460759519,0.1763304,114080.0,114070.0,0.9077253]
[1754460760220,0.1763304,114080.0,114070.0,1.36460803]
[1754460760524,0.1763304,114080.0,114070.0,0.9077253]
[1754460760925,0.63321313,114080.0,114070.0,0.1203]
[1754460761120,0.75063313,114080.0,114070.0,0.1203]
[1754460761420,0.75063313,114080.0,114070.0,0.04703]
[1754460761824,0.75063313,114080.0,114070.0,0.11848]
[1754460766131,0.2937504,114080.0,114070.0,0.2938254]
[1754460771032,0.2224604,114080.0,114070.0,0.2938254]
[1754460771234,0.2937504,114080.0,114070.0,0.2938254]
[1754460772526,0.2798404,114080.0,114070.0,0.2938254]
[1754460772935,0.2941204,114080.0,114070.0,0.2938254]
[1754460788650,0.2941204,114080.0,114070.0,0.75070813]
[1754460790756,0.80796411,114080.0,114070.0,0.80766911]
[1754460791357,0.79368411,114080.0,114070.0,0.80766911]
[1754460792053,0.80796411,114080.0,114070.0,0.80766911]
[1754460793459,0.2941204,114080.0,114070.0,0.80766911]
[1754460794561,0.2564204,114080.0,114070.0,0.80766911]
[1754460794753,0.1763304,114080.0,114070.0,0.80766911]
[1754460794954,0.1763304,114080.0,114070.0,0.96520984]
[1754460796663,0.1763304,114080.0,114070.0,0.75049556]
[1754460797363,0.1763304,114080.0,114070.0,0.90803629]
[1754460798260,0.1763304,114080.0,114070.0,0.75049556]
[1754460799164,0.2252704,114080.0,114070.0,0.75049556]
[1754460799764,0.2948204,114080.0,114070.0,0.75049556]
[1754460799957,0.2948204,114080.0,114070.0,0.2938254]
[1754460800457,0.2948204,114080.0,114070.0,0.75049556]
[1754460800663,0.2948204,114080.0,114070.0,0.2938258]
[1754460804361,0.2948204,114080.0,114070.0,0.75049596]
[1754460804666,0.2948204,114080.0,114070.0,0.2938258]
[1754460805668,0.2948204,114080.0,114070.0,0.75049596]
[1754460807877,0.2948204,114080.0,114070.0,0.2938258]
[1754460808170,0.2948204,114080.0,114070.0,0.75049596]
[1754460812783,0.2948204,114080.0,114070.0,0.2938258]
[1754460812974,0.2948204,114080.0,114070.0,0.75049596]
[1754460816688,0.80866315,114080.0,114070.0,0.80766855]
[1754460819688,0.2948204,114080.0,114070.0,0.80766855]
[1754460819986,0.80866315,114080.0,114070.0,0.80766855]
[1754460822285,0.80866315,114080.0,114070.0,0.96520928]
[1754460823883,0.80866315,114080.0,114070.0,0.80766855]
[1754460826289,0.2948204,114080.0,114070.0,0.80766855]
[1754460828391,0.2948204,114080.0,114070.0,0.2938258]
[1754460828586,0.80866315,114080.0,114070.0,0.03924]
[1754460828794,0.2910254,114070.0,114060.0,1.46186265]
[1754460828990,0.80486815,114070.0,114060.0,1.46186265]
[1754460829986,0.80486815,114070.0,114060.0,1.46286265]
[1754460830191,0.80486815,114070.0,114060.0,0.9051798]
[1754460830394,0.80486815,114070.0,114060.0,1.41902255]
[1754460831202,0.2910254,114070.0,114060.0,1.41902255]
[1754460831992,0.2528254,114070.0,114060.0,1.41902255]
[1754460832301,0.1753454,114070.0,114060.0,1.9328653]
[1754460833803,0.3068494,114080.0,114070.0,0.2232254]
[1754460833995,0.3068494,114080.0,114070.0,0.81108815]
[1754460834692,0.3068494,114080.0,114070.0,0.7539126]
[1754460834897,0.3078494,114080.0,114070.0,0.7539126]
[1754460836100,0.3078494,114080.0,114070.0,0.91145333]
[1754460836899,0.3078494,114080.0,114070.0,0.7539126]
[1754460838506,0.1763428,114080.0,114070.0,0.7539126]
[1754460838707,0.001,114080.0,114070.0,0.7539126]
[1754460838902,0.001,114080.0,114070.0,0.95778282]
[1754460840107,0.001,114080.0,114070.0,0.7539126]
[1754460840306,0.17633,114080.0,114070.0,0.91139407]
[1754460841000,0.17633,114080.0,114070.0,1.06552687]
[1754460841200,0.29197,114080.0,114070.0,0.45472687]
[1754460841403,0.29197,114080.0,114070.0,1.06548687]
[1754460841599,0.29197,114080.0,114070.0,0.89014147]
[1754460842002,0.29197,114080.0,114070.0,0.1219]
[1754460842202,0.29197,114080.0,114070.0,0.73266]
[1754460842809,0.29197,114080.0,114070.0,0.9080053]
[1754460845117,0.29197,114080.0,114070.0,0.73266]
[1754460845304,0.2909853,114070.0,114060.0,0.45474217]
[1754460846116,0.2909853,114070.0,114060.0,0.2972607]
[1754460846518,0.2909853,114070.0,114060.0,0.2982607]
[1754460846716,0.2909853,114070.0,114060.0,0.1229]
[1754460847217,0.2909853,114070.0,114060.0,0.28043919]
[1754460848123,0.2909853,114070.0,114060.0,0.1229]
[1754460849720,0.2909853,114070.0,114060.0,0.28043919]
[1754460850421,0.2909853,114070.0,114060.0,0.1229]
[1754460851122,0.2909853,114070.0,114060.0,0.2982607]
[1754460851625,0.2909853,114070.0,114060.0,0.1229]
[1754460856120,0.2909853,114070.0,114060.0,0.2982609]
[1754460857628,0.2909853,114070.0,114060.0,0.45580009]
[1754460858028,0.2909853,114070.0,114060.0,0.28043919]
[1754460859032,0.2909853,114070.0,114060.0,0.45579989]
[1754460864332,0.2909853,114070.0,114060.0,0.2982607]
[1754460874741,0.80493105,114070.0,114060.0,0.96974564]
[1754460876945,0.80493105,114070.0,114060.0,0.45579989]
[1754460877134,0.80493105,114070.0,114060.0,0.96974564]
[1754460877643,0.80493105,114070.0,114060.0,0.45579989]
[1754460877946,0.80493105,114070.0,114060.0,0.81220645]
[1754460878135,0.80493105,114070.0,114060.0,0.2982607]
[1754460878443,0.80493105,114070.0,114060.0,0.81220645]
[1754460883034,0.80493105,114070.0,114060.0,0.63684575]
[1754460883341,0.80493105,114070.0,114060.0,0.1229]
[1754460886143,0.2909853,114070.0,114060.0,0.1229]
[1754460886344,0.80493105,114070.0,114060.0,0.1229]
[1754460886838,0.80493105,114070.0,114060.0,0.11703]
[1754460889248,0.2909853,114070.0,114060.0,0.11703]
[1754460889449,0.80493105,114070.0,114060.0,0.11703]
[1754460897058,0.2909853,114070.0,114060.0,0.11703]
[1754460897357,0.80493105,114070.0,114060.0,0.27456919]
[1754460900461,0.80493105,114070.0,114060.0,0.11703]
[1754460901566,0.80493105,114070.0,114060.0,0.2923907]
[1754460901765,0.80493105,114070.0,114060.0,0.80633645]
[1754460901968,0.80493105,114070.0,114060.0,0.2923907]
[1754460902269,0.2909853,114070.0,114060.0,0.80633645]
[1754460902464,0.80493105,114070.0,114060.0,0.80633645]
[1754460905269,0.80493105,114070.0,114060.0,0.2923907]
[1754460905469,0.80493105,114070.0,114060.0,0.80633645]
[1754460905873,0.80493105,114070.0,114060.0,0.2923907]
[1754460906173,0.80493105,114070.0,114060.0,0.80633645]
[1754460907076,0.80493105,114070.0,114060.0,0.11703]
[1754460907571,0.80493105,114070.0,114060.0,0.001]
[1754460907773,1.3188768,114070.0,114060.0,0.001]
[1754460907970,0.2933007,114060.0,114050.0,0.15753919]
[1754460908167,1.9306722,114060.0,114050.0,0.15753919]
[1754460908676,0.2933161,114050.0,114040.0,0.15753919]
[1754460908872,0.80726185,114050.0,114040.0,0.15753919]
[1754460909169,0.80726185,114050.0,114040.0,0.21445919]
[1754460909373,0.80726185,114050.0,114040.0,0.27446919]
[1754460909574,0.81626667,114050.0,114040.0,0.27446919]
[1754460910178,0.81626667,114050.0,114040.0,0.15753919]
[1754460910874,0.2229616,114040.0,114030.0,1.59849269]
[1754460911075,0.80727735,114040.0,114030.0,1.08454694]
[1754460911276,0.80727735,114040.0,114030.0,0.95557244]
[1754460911876,0.2943316,114040.0,114030.0,1.64492509]
[1754460912278,0.80827735,114040.0,114030.0,1.13097934]
[1754460912578,0.80827735,114040.0,114030.0,1.64492509]
[1754460912777,0.2943316,114040.0,114030.0,1.64492509]
[1754460913074,0.80827735,114040.0,114030.0,1.64492509]
[1754460913580,0.2943316,114040.0,114030.0,1.64492509]
[1754460913879,0.80927735,114040.0,114030.0,1.64492509]
[1754460915782,0.80927735,114040.0,114030.0,1.13097934]
[1754460915983,0.80927735,114040.0,114030.0,1.64492509]
[1754460916283,0.80927735,114040.0,114030.0,1.13097934]
[1754460916483,0.80927735,114040.0,114030.0,1.64492509]
[1754460916684,0.69133735,114040.0,114030.0,1.64492509]
[1754460916983,0.1773916,114040.0,114030.0,2.15887084]
[1754460917686,0.1773916,114040.0,114030.0,1.13097934]
[1754460917880,0.1773916,114040.0,114030.0,1.64492509]
[1754460918279,0.1773916,114040.0,114030.0,1.4873859]
[1754460920585,0.1773916,114040.0,114030.0,0.97344015]
[1754460920885,0.1773916,114040.0,114030.0,1.4873859]
[1754460922487,0.1773916,114040.0,114030.0,0.97344015]
[1754460922689,0.1773916,114040.0,114030.0,1.4873859]
[1754460925490,0.1773916,114040.0,114030.0,1.64492509]
[1754460925888,0.1773916,114040.0,114030.0,1.13097934]
[1754460926090,0.69133735,114040.0,114030.0,1.64492509]
[1754460926394,0.1773916,114040.0,114030.0,1.64492509]
[1754460927395,0.1773916,114040.0,114030.0,1.13097934]
[1754460927691,0.1773916,114040.0,114030.0,1.64492509]
[1754460927887,0.70789735,114040.0,114030.0,1.13097934]
[1754460928095,0.80881735,114040.0,114030.0,1.64492509]
[1754460930996,0.80881735,114040.0,114030.0,0.52149934]
[1754460931190,0.80881735,114040.0,114030.0,0.95533244]
[1754460931398,0.80881735,114040.0,114030.0,0.95529244]
[1754460932388,0.2948716,114040.0,114030.0,0.95529244]
[1754460932594,0.2948716,114040.0,114030.0,1.46923819]
[1754460932795,0.80881735,114040.0,114030.0,1.64464499]
[1754460933599,0.80881735,114040.0,114030.0,1.13069924]
[1754460933791,0.80881735,114040.0,114030.0,1.64464499]
[1754460934292,0.2948716,114040.0,114030.0,1.4871058]
[1754460934497,0.80881735,114040.0,114030.0,1.4871058]
[1754460935100,0.80881735,114040.0,114030.0,0.97316005]
[1754460935291,0.80881735,114040.0,114030.0,0.79775325]
[1754460935492,0.80881735,114040.0,114030.0,1.311699]
[1754460935802,0.80881735,114040.0,114030.0,1.4871058]
[1754460936301,0.80881735,114040.0,114030.0,1.64472102]
[1754460936502,0.80881735,114040.0,114030.0,1.46931422]
[1754460936694,0.2948716,114040.0,114030.0,0.95536847]
[1754460937102,0.2948716,114040.0,114030.0,0.79775325]
[1754460937503,0.2948716,114040.0,114030.0,0.97315995]
[1754460938108,0.2948716,114040.0,114030.0,0.79775325]
[1754460940505,0.2948716,114040.0,114030.0,0.95559355]
[1754460940801,0.2948716,114040.0,114030.0,1.13100035]
[1754460942901,0.2948716,114040.0,114030.0,0.95559355]
[1754460943206,0.2948716,114040.0,114030.0,0.97316015]
[1754460943402,0.2948716,114040.0,114030.0,1.13099642]
[1754460945807,0.2948716,114040.0,114030.0,0.97316015]
[1754460946005,0.2948716,114040.0,114030.0,1.13098954]
[1754460950503,0.2948716,114040.0,114030.0,1.13098944]
[1754460950704,0.75197322,114040.0,114030.0,0.34638264]
[1754460950906,0.75197322,114040.0,114030.0,0.20425939]
[1754460951210,0.75197322,114040.0,114030.0,0.15782939]
[1754460951600,0.75197322,114040.0,114030.0,0.06845]
[1754460951806,0.75197322,114040.0,114030.0,0.08243]
[1754460953305,0.75197322,114040.0,114030.0,0.00955]
[1754460953706,0.2950556,114030.0,114020.0,0.88367939]
[1754460953911,0.75215722,114030.0,114020.0,0.27471939]
[1754460955215,0.75215722,114030.0,114020.0,0.34616649]
[1754460956313,1.36103722,114030.0,114020.0,0.15782939]
[1754460956507,1.36103722,114030.0,114020.0,0.27471939]
[1754460956703,1.36103722,114030.0,114020.0,0.26073939]
[1754460956907,1.36103722,114030.0,114020.0,0.27471939]
[1754460958110,0.9039356,114030.0,114020.0,0.27471939]
[1754460958306,1.36103722,114030.0,114020.0,0.27471939]
[1754460958707,1.93276582,114030.0,114020.0,0.27471939]
[1754460959011,1.93276582,114030.0,114020.0,0.11689]
[1754460960914,1.41835071,114030.0,114020.0,0.2923111]
[1754460961209,1.29866071,114030.0,114020.0,0.80672621]
[1754460961413,1.37037071,114030.0,114020.0,0.80672621]
[1754460961609,0.8559556,114030.0,114020.0,0.11689]
[1754460961815,1.41831071,114030.0,114020.0,0.11689]
[1754460962917,1.41831071,114030.0,114020.0,0.292311]
[1754460963112,0.9038956,114030.0,114020.0,0.80672611]
[1754460963309,1.41831071,114030.0,114020.0,0.80672611]
[1754460963812,0.223361,114020.0,114010.0,1.17181362]
[1754460964013,0.80948611,114020.0,114010.0,1.68622873]
[1754460964917,0.80948611,114020.0,114010.0,1.68722873]
[1754460965715,0.295071,114020.0,114010.0,1.17281362]
[1754460966015,0.295071,114020.0,114010.0,1.68722873]
[1754460966218,0.295071,114020.0,114010.0,1.59951303]
[1754460966419,0.295071,114020.0,114010.0,1.60151303]
[1754460967113,0.80948611,114020.0,114010.0,1.60151303]
[1754460967922,0.295071,114020.0,114010.0,1.60151303]
[1754460969021,0.280791,114020.0,114010.0,1.60151303]
[1754460969321,0.280791,114020.0,114010.0,1.44368364]
[1754460970223,0.280791,114020.0,114010.0,1.60126851]
[1754460970422,0.2897974,114020.0,114010.0,1.60126851]
[1754460970718,0.280791,114020.0,114010.0,1.60126851]
[1754460970923,0.175421,114020.0,114010.0,1.60126851]
[1754460971127,0.175421,114020.0,114010.0,1.44368364]
[1754460971717,0.1754211,114020.0,114010.0,1.57525404]
[1754460975529,0.1754154,114030.0,114020.0,0.2220513]
[1754460975728,0.2631022,114040.0,114030.0,0.2922959]
[1754460975935,0.2631022,114040.0,114030.0,2.08735099]
[1754460976329,0.2631022,114040.0,114030.0,1.57293588]
[1754460976936,0.2641022,114040.0,114030.0,1.57293588]
[1754460977124,0.2202516,114040.0,114030.0,2.08735099]
[1754460977631,0.2202516,114040.0,114030.0,1.05852077]
[1754460977833,0.2202516,114040.0,114030.0,2.08735099]
[1754460978027,0.2202516,114040.0,114030.0,1.05852077]
[1754460978234,0.2202516,114040.0,114030.0,1.57293588]
[1754460978427,0.2701216,114040.0,114030.0,1.05852077]
[1754460978628,0.2701216,114040.0,114030.0,1.51555583]
[1754460978829,0.2928316,114040.0,114030.0,1.51555583]
[1754460979030,0.2928316,114040.0,114030.0,1.35797096]
[1754460979634,0.2928316,114040.0,114030.0,0.9009359]
[1754460980029,0.3071116,114040.0,114030.0,0.9009359]
[1754460980231,0.79693666,114040.0,114030.0,0.2922959]
[1754460980437,0.79693666,114040.0,114030.0,0.65519]
[1754460980735,0.79693666,114040.0,114030.0,0.72545]